bitfinex/quotes_SOLUSD_20251117
["timestamp","ask_amount","ask_price","bid_price","bid_amount"]
[1763407271227,50.0,130.21,130.18,10.48882769]
[1763407271403,50.0,130.21,130.19,10.48882769]
[1763407271914,50.0,130.21,130.2,10.45882769]
[1763407272119,50.0,130.23,130.21,9.78882769]
[1763407272297,50.0,130.23,130.22,14.15820293]
[1763407275848,54.68,130.25,130.22,10.45882769]
[1763407276138,54.68,130.25,130.24,14.15820293]
[1763407277125,50.0,130.2,130.14,38.5357726]
[1763407277370,50.0,130.18,130.15,16.16920293]
[1763407277552,50.0,130.18,130.17,14.15820293]
[1763407277834,50.0,130.18,130.15,2.011]
[1763407278036,50.66,130.17,130.16,10.35404459]
[1763407278412,55.34,130.17,130.16,10.35404459]
[1763407278649,54.68,130.17,130.16,10.35404459]
[1763407279755,54.68,130.17,130.16,24.51224752]
[1763407279931,50.0,130.18,130.16,24.51224752]
[1763407280126,4.68,130.17,130.16,10.35404459]
[1763407280332,4.68,130.17,130.16,24.51224752]
[1763407280731,4.68,130.17,130.16,25.18224752]
[1763407280932,4.68,130.17,130.16,24.51224752]
[1763407281254,50.0,130.18,130.16,10.35404459]
[1763407281456,50.0,130.18,130.16,24.51224752]
[1763407282430,97.63703062,130.17,130.16,10.25404459]
[1763407282639,99.63703062,130.17,130.16,10.25404459]
[1763407283860,83.47882769,130.17,130.16,10.25404459]
[1763407284033,102.31703062,130.17,130.16,10.25404459]
[1763407284438,92.52820293,130.17,130.16,10.25404459]
[1763407284653,102.31703062,130.17,130.16,10.25404459]
[1763407284863,104.31703062,130.17,130.16,10.25404459]
[1763407285556,102.31703062,130.17,130.16,10.25404459]
[1763407285748,104.31703062,130.17,130.16,10.25404459]
[1763407286062,102.31703062,130.17,130.16,10.25404459]
[1763407286259,87.51916293,130.17,130.16,10.25404459]
[1763407286436,73.36096,130.17,130.16,10.25404459]
[1763407286853,82.83916293,130.17,130.16,10.25404459]
[1763407287054,72.80096,130.17,130.16,10.25404459]
[1763407287963,50.0,130.18,130.16,24.41224752]
[1763407288265,54.68,130.18,130.16,10.25404459]
[1763407288578,50.0,130.17,130.16,24.41224752]
[1763407288862,68.58096,130.17,130.16,10.15404459]
[1763407289662,68.58096,130.17,130.16,24.31224752]
[1763407289868,68.12096,130.17,130.16,24.31224752]
[1763407290351,54.68,130.17,130.16,24.31224752]
[1763407290759,54.68,130.17,130.16,19.19104606]
[1763407291153,50.0,130.17,130.16,19.19104606]
[1763407292168,50.36,130.17,130.16,10.15404459]
[1763407293148,50.0,130.18,130.16,19.86104606]
[1763407293444,50.0,130.22,130.18,9.78882769]
[1763407293767,50.0,130.22,130.21,9.03700147]
[1763407294068,54.68,130.24,130.21,18.82582916]
[1763407294271,50.0,130.27,130.24,9.78882769]
[1763407294450,50.0,130.27,130.26,18.82582916]
[1763407294651,50.0,130.29,130.26,9.70700147]
[1763407294957,50.0,130.29,130.28,9.03700147]
[1763407295466,50.0,130.29,130.28,0.67]
[1763407295666,50.0,130.3,130.29,9.78882769]
[1763407295847,50.0,130.32,130.29,18.82582916]
[1763407296045,50.0,130.32,130.31,18.07400294]
[1763407296566,50.0,130.32,130.31,9.70700147]
[1763407296771,4.68,130.35,130.31,9.70700147]
[1763407296772,54.68,130.35,130.32,9.78882769]
[1763407296976,54.68,130.35,130.34,9.03700147]
[1763407297156,50.0,130.35,130.34,9.70700147]
[1763407299059,0.2,130.36,130.34,19.49582916]
[1763407299265,50.0,130.37,130.35,9.70700147]
[1763407299461,4.68,130.39,130.37,9.78882769]
[1763407299462,50.0,130.39,130.37,9.78882769]
[1763407299663,50.0,130.41,130.39,9.78882769]
[1763407299848,50.0,130.41,130.4,18.07400294]
[1763407300270,50.0,130.41,130.4,18.74400294]
[1763407300579,4.68,130.42,130.38,9.78882769]
[1763407300580,50.0,130.39,130.38,9.78882769]
[1763407300960,50.0,130.39,130.38,10.45882769]
[1763407301356,50.0,130.4,130.38,10.45882769]
[1763407301660,50.0,130.4,130.39,10.45882769]
[1763407301869,50.0,130.4,130.39,28.53283063]
[1763407302172,50.0,130.4,130.39,10.45882769]
[1763407302365,50.0,130.4,130.24,36.14800588]
[1763407302366,50.0,130.32,130.24,9.03700147]
[1763407302557,50.0,130.23,130.21,0.65]
[1763407302763,50.0,130.2,130.16,19.19104606]
[1763407303069,50.0,130.18,130.17,0.65]
[1763407303647,50.0,130.2,130.17,9.68700147]
[1763407303849,50.0,130.2,130.19,9.03700147]
[1763407304349,50.0,130.2,130.19,9.68700147]
[1763407304550,50.0,130.23,130.2,9.78882769]
[1763407304893,50.0,130.23,130.22,18.82582916]
[1763407305058,50.0,130.23,130.22,9.03700147]
[1763407307545,50.0,130.23,130.21,27.90978769]
[1763407307772,50.0,130.23,130.21,9.78882769]
[1763407307969,50.0,130.23,130.22,0.65]
[1763407309261,50.0,130.23,130.2,9.78882769]
[1763407309587,50.0,130.21,130.16,19.19104606]
[1763407309753,50.0,130.23,130.2,9.78882769]
[1763407309953,50.0,130.25,130.22,18.82582916]
[1763407310272,50.0,130.25,130.24,9.03700147]
[1763407311549,50.0,130.25,130.24,0.65]
[1763407311773,50.0,130.25,130.24,9.68700147]
[1763407314170,54.01968299,130.25,130.24,9.68700147]
[1763407314580,50.0,130.25,130.24,9.03700147]
[1763407316185,50.0,130.22,130.2,9.78882769]
[1763407316489,50.0,130.22,130.21,9.68700147]
[1763407316687,50.0,130.24,130.22,9.78882769]
[1763407316864,50.0,130.24,130.23,18.82582916]
[1763407317065,50.0,130.24,130.23,19.47582916]
[1763407317282,50.0,130.24,130.21,18.77096]
[1763407317569,50.0,130.22,130.19,0.65]
[1763407317769,50.0,130.22,130.2,0.65]
[1763407318600,50.0,130.22,130.21,9.03700147]
[1763407319091,50.0,130.22,130.21,9.68700147]
[1763407319771,50.0,130.22,130.21,0.65]
[1763407319982,50.0,130.19,130.18,27.90978769]
[1763407320479,50.0,130.19,130.18,28.55978769]
[1763407321067,50.0,130.21,130.19,9.78882769]
[1763407321261,4.68,130.22,130.19,10.43882769]
[1763407321482,4.68,130.22,130.21,9.03700147]
[1763407321676,50.0,130.21,130.2,0.65]
[1763407322078,50.0,130.21,130.2,9.68700147]
[1763407322366,50.0,130.25,130.23,9.78882769]
[1763407322586,0.36,130.32,130.25,9.78882769]
[1763407322587,50.0,130.27,130.25,9.78882769]
[1763407322774,50.0,130.26,130.24,0.65]
[1763407322972,50.0,130.26,130.25,9.03700147]
[1763407323490,50.0,130.21,130.19,18.12096]
[1763407323865,50.0,130.21,130.2,9.03700147]
[1763407324062,50.0,130.18,130.16,19.84104606]
[1763407324265,50.0,130.18,130.17,18.82582916]
[1763407324567,50.0,130.18,130.17,19.47582916]
[1763407325101,50.0,130.18,130.17,9.03700147]
[1763407325668,50.0,130.18,130.17,19.47582916]
[1763407326295,50.0,130.18,130.17,9.03700147]
[1763407326979,50.0,130.18,130.17,9.68700147]
[1763407327174,50.0,130.18,130.17,9.03700147]
[1763407327582,50.0,130.18,130.16,10.15404459]
[1763407327777,50.0,130.18,130.17,9.03700147]
[1763407330074,50.0,130.18,130.17,9.68700147]
[1763407330391,50.0,130.18,130.17,9.03700147]
[1763407330770,50.0,130.18,130.17,19.47582916]
[1763407330971,4.68,130.19,130.17,19.47582916]
[1763407331191,50.0,130.2,130.18,18.82582916]
[1763407331527,110.78371849,130.37,130.18,18.82582916]
[1763407331528,50.0,130.24,130.21,9.78882769]
[1763407331734,50.0,130.22,130.21,9.78882769]
[1763407331898,50.0,130.22,130.21,10.50882769]
[1763407332533,50.0,130.2,130.19,18.12096]
[1763407332706,50.0,130.27,130.17,27.90978769]
[1763407332707,50.0,130.18,130.17,27.90978769]
[1763407333040,50.0,130.2,130.17,36.94678916]
[1763407333327,50.0,130.2,130.19,9.03700147]
[1763407333820,50.0,130.2,130.19,9.75700147]
[1763407334203,4.68,130.22,130.19,9.75700147]
[1763407334510,0.36,130.26,130.17,27.90978769]
[1763407334511,50.0,130.21,130.2,10.50882769]
[1763407334904,50.0,130.25,130.21,9.78882769]
[1763407335211,50.0,130.27,130.23,9.78882769]
[1763407335405,50.0,130.27,130.26,9.03700147]
[1763407335640,4.68,130.28,130.27,9.78882769]
[1763407335938,50.0,130.32,130.3,18.12096]
[1763407336129,50.0,130.34,130.31,28.58283063]
[1763407336310,50.0,130.34,130.33,9.03700147]
[1763407336997,50.0,130.31,130.21,6.3820795]
[1763407337200,50.0,130.29,130.28,9.78882769]
[1763407337443,50.0,130.29,130.28,18.82582916]
[1763407338098,50.0,130.29,130.27,18.12096]
[1763407338429,50.0,130.29,130.28,9.03700147]
[1763407339335,54.68,130.31,130.28,9.74700147]
[1763407339516,54.68,130.31,130.3,9.03700147]
[1763407340233,54.68,130.31,130.3,18.82582916]
[1763407340413,6.21839018,130.4,130.3,37.65678916]
[1763407340414,50.0,130.33,130.3,37.65678916]
[1763407340727,50.0,130.33,130.32,18.07400294]
[1763407341133,50.0,130.35,130.33,9.78882769]
[1763407341333,50.0,130.35,130.34,9.03700147]
[1763407341644,50.0,130.35,130.32,9.03700147]
[1763407341819,50.0,130.35,130.34,9.03700147]
[1763407342487,50.0,130.35,130.25,4.66]
[1763407342488,50.0,130.31,130.25,4.66]
[1763407342746,50.0,130.27,130.24,9.03700147]
[1763407342908,50.0,130.27,130.25,0.71]
[1763407343108,50.0,130.27,130.26,9.78882769]
[1763407343303,4.68,130.3,130.26,9.78882769]
[1763407343304,50.0,130.29,130.26,9.78882769]
[1763407343537,50.0,130.29,130.27,0.71]
[1763407343735,50.0,130.29,130.28,9.03700147]
[1763407344718,50.0,130.27,130.26,9.78882769]
[1763407344916,4.68,130.3,130.26,18.82582916]
[1763407344917,50.0,130.29,130.26,18.82582916]
[1763407345136,50.0,130.29,130.28,9.03700147]
[1763407345926,50.0,130.32,130.29,9.78882769]
[1763407346120,50.0,130.34,130.32,9.78882769]
[1763407346331,4.66,130.37,130.33,9.74700147]
[1763407346332,50.0,130.36,130.33,9.74700147]
[1763407346540,50.0,130.36,130.35,18.82582916]
[1763407346762,4.66,130.37,130.31,22.78096]
[1763407346763,50.0,130.34,130.31,22.78096]
[1763407347059,50.0,130.34,130.33,9.03700147]
[1763407347757,50.0,130.28,130.27,9.78882769]
[1763407347934,50.0,130.3,130.27,18.82582916]
[1763407348131,50.0,130.3,130.29,9.03700147]
[1763407349996,54.66,130.34,130.3,9.78882769]
[1763407350256,54.66,130.34,130.33,9.03700147]
[1763407350459,50.0,130.3,130.29,27.90978769]
[1763407350637,50.0,130.3,130.29,37.65678916]
[1763407350842,50.0,130.3,130.29,42.74443974]
[1763407351239,50.0,130.3,130.29,14.12465205]
[1763407356374,50.0,130.3,130.29,23.91347974]
[1763407356576,50.0,130.32,130.3,9.78882769]
[1763407356744,50.0,130.32,130.31,14.12465205]
[1763407357144,50.0,130.32,130.31,23.91347974]
[1763407357547,50.0,130.32,130.31,24.62347974]
[1763407357844,54.66,130.35,130.31,38.74813179]
[1763407358044,54.66,130.35,130.34,14.12465205]
[1763407358260,50.0,130.35,130.34,14.12465205]
[1763407359147,50.26,130.35,130.34,14.12465205]
[1763407359366,50.0,130.34,130.31,9.78882769]
[1763407359665,50.0,130.34,130.32,14.12465205]
[1763407360166,50.0,130.34,130.32,9.78882769]
[1763407360763,50.0,130.34,130.33,14.12465205]
[1763407362367,50.0,130.34,130.33,24.58347974]
[1763407362545,50.0,130.36,130.34,9.78882769]
[1763407362751,50.0,130.36,130.35,14.12465205]
[1763407362949,50.0,130.36,130.35,24.58347974]
[1763407363142,0.2,130.4,130.35,24.58347974]
[1763407363143,50.0,130.38,130.36,9.78882769]
[1763407363452,50.0,130.38,130.36,10.45882769]
[1763407363648,50.0,130.36,130.33,18.79096]
[1763407363868,50.0,130.36,130.35,23.91347974]
[1763407364073,50.0,130.34,130.33,9.78882769]
[1763407364348,50.0,130.34,130.33,23.91347974]
[1763407364561,50.0,130.34,130.33,9.78882769]
[1763407364851,50.0,130.29,130.26,10.45882769]
[1763407365050,50.0,130.34,130.33,9.78882769]
[1763407365257,2.2,130.46,130.35,27.90978769]
[1763407365258,50.0,130.36,130.35,27.90978769]
[1763407365575,50.0,130.36,130.35,23.91347974]
[1763407366152,50.0,130.38,130.36,9.78882769]
[1763407366347,50.0,130.38,130.37,14.12465205]
[1763407369650,50.0,130.38,130.37,23.91347974]
[1763407369851,50.0,130.36,130.33,18.12096]
[1763407370056,50.0,130.36,130.35,23.91347974]
[1763407370955,50.0,130.36,130.35,24.58347974]
[1763407371371,50.2,130.4,130.37,27.90978769]
[1763407371550,50.2,130.4,130.39,23.91347974]
[1763407371757,0.2,130.4,130.39,38.03813179]
[1763407371984,0.2,130.4,130.39,38.70813179]
[1763407372284,50.2,130.4,130.39,24.58347974]
[1763407372521,0.2,130.4,130.39,24.58347974]
[1763407372652,0.2,130.43,130.4,9.78882769]
[1763407372853,0.2,130.43,130.42,14.12465205]
[1763407373175,50.0,130.44,130.42,24.58347974]
[1763407373382,50.0,130.44,130.43,24.58347974]
[1763407373670,50.0,130.44,130.43,14.12465205]
[1763407373877,50.0,130.41,130.4,27.90978769]
[1763407374081,50.0,130.41,130.4,42.70443974]
[1763407374776,50.0,130.41,130.4,56.82909179]
[1763407376053,50.0,130.41,130.4,42.03443974]
[1763407377113,50.0,130.41,130.4,27.90978769]
[1763407377281,50.0,130.41,130.4,42.70443974]
[1763407377482,50.0,130.39,130.38,9.78882769]
[1763407377672,50.0,130.42,130.38,24.58347974]
[1763407377878,50.0,130.4,130.38,10.45882769]
[1763407378185,50.0,130.43,130.4,9.78882769]
[1763407378573,50.0,130.43,130.39,9.78882769]
[1763407378773,50.0,130.41,130.39,10.45882769]
[1763407379069,50.0,130.41,130.4,23.91347974]
[1763407379276,54.82,130.41,130.4,14.12465205]
[1763407379786,50.0,130.38,130.37,9.78882769]
[1763407379981,50.0,130.38,130.37,23.91347974]
[1763407380176,50.0,130.28,130.26,0.67]
[1763407380376,50.0,130.26,130.23,14.79465205]
[1763407380694,50.0,130.29,130.25,18.12096]
[1763407380875,50.0,130.31,130.25,18.12096]
[1763407380876,50.0,130.27,130.25,18.12096]
[1763407381074,50.0,130.29,130.24,4.66]
[1763407381273,50.0,130.31,130.27,18.12096]
[1763407381471,50.0,130.35,130.31,9.78882769]
[1763407381667,50.0,130.36,130.35,9.78882769]
[1763407381895,50.0,130.36,130.35,14.12465205]
[1763407382393,50.0,130.36,130.35,23.91347974]
[1763407382776,50.0,130.36,130.35,14.12465205]
[1763407384695,50.0,130.36,130.34,9.78882769]
[1763407384872,50.0,130.36,130.35,14.12465205]
[1763407387576,50.0,130.38,130.33,14.44882769]
[1763407387577,50.0,130.35,130.34,14.12465205]
[1763407388100,50.0,130.35,130.34,23.91347974]
[1763407388285,50.0,130.38,130.34,14.79465205]
[1763407388487,50.0,130.4,130.37,23.91347974]
[1763407388692,50.0,130.4,130.39,23.91347974]
[1763407389299,50.0,130.44,130.4,9.78882769]
[1763407389471,50.0,130.44,130.43,23.91347974]
[1763407389676,0.2,130.46,130.44,9.78882769]
[1763407389677,50.2,130.46,130.44,9.78882769]
[1763407389895,50.2,130.46,130.45,14.12465205]
[1763407390095,50.0,130.44,130.41,19.47465205]
[1763407390297,50.0,130.44,130.43,23.91347974]
[1763407390976,50.0,130.44,130.43,9.78882769]
[1763407391296,4.68,130.49,130.4,15.13882769]
[1763407391297,50.0,130.42,130.4,15.13882769]
[1763407391712,50.0,130.42,130.4,9.78882769]
[1763407391889,50.0,130.4,130.38,4.68]
[1763407392078,50.0,130.4,130.39,14.12465205]
[1763407392491,50.0,130.42,130.4,9.78882769]
[1763407392698,50.0,130.42,130.41,14.12465205]
[1763407393093,50.0,130.42,130.41,23.91347974]
[1763407393496,50.0,130.42,130.41,38.72813179]
[1763407393694,50.0,130.42,130.41,24.60347974]
[1763407393902,50.0,130.44,130.41,38.72813179]
[1763407394100,50.0,130.46,130.44,9.78882769]
[1763407394407,50.0,130.48,130.46,9.78882769]
[1763407394612,50.0,130.5,130.48,9.78882769]
[1763407394982,50.0,130.5,130.49,14.12465205]
[1763407395488,50.0,130.5,130.49,23.91347974]
[1763407396120,0.2,130.52,130.5,9.78882769]
[1763407396121,50.2,130.52,130.5,9.78882769]
[1763407396284,50.2,130.52,130.51,14.12465205]
[1763407397415,50.2,130.52,130.51,23.91347974]
[1763407397778,50.2,130.52,130.51,24.57347974]
[1763407397984,0.2,130.52,130.51,24.57347974]
[1763407399429,50.0,130.54,130.52,9.78882769]
[1763407399713,50.0,130.56,130.54,9.78882769]
[1763407399909,50.0,130.56,130.55,14.12465205]
[1763407400424,50.0,130.54,130.53,4.66]
[1763407400718,50.0,130.52,130.5,32.90561205]
[1763407400888,50.0,130.52,130.5,23.44096]
[1763407401091,50.0,130.52,130.51,0.66]
[1763407401716,50.0,130.52,130.51,14.78465205]
[1763407402090,50.0,130.55,130.52,9.78882769]
[1763407402311,0.2,130.57,130.5,36.90561205]
[1763407402312,50.2,130.57,130.54,14.12465205]
[1763407402561,0.2,130.59,130.56,42.03443974]
[1763407402689,0.2,130.59,130.58,28.2493041]
[1763407402889,0.2,130.63,130.6,14.12465205]
[1763407403190,0.2,130.63,130.59,32.24561205]
[1763407403191,50.0,130.62,130.61,4.66]
[1763407403390,50.0,130.62,130.61,14.12465205]
[1763407403614,0.2,130.63,130.61,14.12465205]
[1763407403813,0.2,130.63,130.62,14.78465205]
[1763407406345,50.0,130.66,130.62,14.78465205]
[1763407406543,50.0,130.67,130.65,14.12465205]
[1763407406766,50.0,130.67,130.66,14.12465205]
[1763407407346,50.0,130.67,130.66,14.78465205]
[1763407407552,50.0,130.69,130.66,14.78465205]
[1763407407735,50.0,130.69,130.68,14.12465205]
[1763407408442,50.0,130.69,130.63,0.66]
[1763407408443,50.0,130.65,130.63,0.66]
[1763407408647,50.0,130.65,130.64,14.12465205]
[1763407408819,50.0,130.65,130.64,18.78465205]
[1763407410044,50.4,130.65,130.64,14.12465205]
[1763407410247,50.0,130.65,130.64,14.12465205]
[1763407410822,50.0,130.65,130.64,8.96811685]
[1763407413963,50.0,130.68,130.64,18.5962337]
[1763407414128,50.0,130.68,130.67,8.96811685]
[1763407415737,50.0,130.65,130.64,8.96811685]
[1763407415931,50.0,130.65,130.64,18.5962337]
[1763407416149,50.0,130.65,130.64,17.9362337]
[1763407416331,50.0,130.67,130.64,18.5962337]
[1763407416534,50.0,130.67,130.66,8.96811685]
[1763407416747,50.0,130.69,130.66,8.96811685]
[1763407416945,50.0,130.69,130.68,8.96811685]
[1763407417434,50.0,130.72,130.68,9.62811685]
[1763407417644,50.0,130.74,130.71,36.0571937]
[1763407417845,50.0,130.76,130.73,8.96811685]
[1763407418060,50.0,130.76,130.75,8.96811685]
[1763407418230,50.0,130.78,130.75,8.96811685]
[1763407418560,50.1,130.79,130.77,8.96811685]
[1763407418860,50.1,130.79,130.78,8.96811685]
[1763407419224,50.1,130.79,130.78,9.62811685]
[1763407419426,50.1,130.79,130.78,13.62811685]
[1763407419751,50.0,130.76,130.75,22.78096]
[1763407420061,50.0,130.78,130.76,0.66]
[1763407420246,50.0,130.78,130.77,8.96811685]
[1763407420563,50.0,130.74,130.73,4.66]
[1763407420853,50.0,130.74,130.72,4.66]
[1763407421355,50.0,130.74,130.73,0.66]
[1763407421561,50.0,130.74,130.72,0.66]
[1763407421767,50.0,130.74,130.73,8.96811685]
[1763407422663,50.0,130.74,130.73,9.66811685]
[1763407422952,50.0,130.74,130.73,8.96811685]
[1763407423154,50.0,130.76,130.73,9.66811685]
[1763407423333,50.0,130.76,130.75,8.96811685]
[1763407423762,50.0,130.76,130.75,9.66811685]
[1763407423932,50.0,130.76,130.75,8.96811685]
[1763407425660,50.0,130.74,130.72,31.74907685]
[1763407425959,50.0,130.74,130.72,32.44907685]
[1763407426144,50.0,130.76,130.73,0.7]
[1763407426533,10.18882769,130.78,130.73,5.36]
[1763407426534,50.0,130.74,130.73,5.36]
[1763407426833,50.0,130.74,130.73,8.96811685]
[1763407427033,50.0,130.7,130.66,0.7]
[1763407427256,50.0,130.7,130.69,27.08907685]
[1763407427458,50.0,130.7,130.69,8.96811685]
[1763407428030,50.0,130.72,130.69,27.78907685]
[1763407428262,50.0,130.74,130.72,18.12096]
[1763407428439,50.0,130.74,130.73,8.96811685]
[1763407430347,59.78882769,130.74,130.73,8.96811685]
[1763407431043,50.0,130.74,130.73,8.96811685]
[1763407434436,50.0,130.7,130.69,4.64]
[1763407434779,50.0,130.7,130.69,8.96811685]
[1763407435661,50.0,130.72,130.69,9.66811685]
[1763407435838,50.0,130.72,130.71,8.96811685]
[1763407436370,50.0,130.76,130.71,18.6362337]
[1763407436566,50.0,130.76,130.75,8.96811685]
[1763407437244,60.18882769,130.76,130.75,8.96811685]
[1763407437444,60.18882769,130.76,130.69,0.7]
[1763407437445,50.0,130.72,130.69,0.7]
[1763407437653,50.0,130.72,130.71,8.96811685]
[1763407438455,50.0,130.69,130.67,18.12096]
[1763407438643,50.0,130.69,130.68,8.96811685]
[1763407439771,50.0,130.67,130.65,4.64]
[1763407439951,50.0,130.67,130.66,18.12096]
[1763407440349,50.0,130.67,130.66,18.82096]
[1763407440549,50.0,130.69,130.67,18.12096]
[1763407440764,50.0,130.73,130.69,18.12096]
[1763407440969,50.0,130.73,130.72,17.9362337]
[1763407441166,50.0,130.7,130.67,18.82096]
[1763407441348,50.0,130.7,130.69,8.96811685]
[1763407444475,50.0,130.65,130.64,13.62811685]
[1763407444674,50.0,130.67,130.64,14.32811685]
[1763407445095,50.4,130.7,130.59,14.760259]
[1763407445096,50.0,130.63,130.59,14.760259]
[1763407445255,50.0,130.63,130.6,4.66]
[1763407445455,50.0,130.61,130.6,5.36]
[1763407445654,50.0,130.61,130.6,4.66]
[1763407445871,50.0,130.61,130.6,8.96811685]
[1763407446797,50.0,130.61,130.56,15.2443917]
[1763407446798,50.0,130.59,130.56,8.96811685]
[1763407446952,50.0,130.57,130.56,0.7]
[1763407447263,50.0,130.57,130.56,18.6362337]
[1763407447584,50.0,130.59,130.56,18.6362337]
[1763407447784,50.0,130.59,130.58,8.96811685]
[1763407448151,50.0,130.57,130.56,8.96811685]
[1763407448357,50.0,130.55,130.52,0.7]
[1763407448591,50.0,130.55,130.54,8.96811685]
[1763407449153,50.0,130.55,130.51,5.74520396]
[1763407449154,50.0,130.52,130.51,5.74520396]
[1763407449377,50.0,130.52,130.51,14.71332081]
[1763407449582,50.0,130.53,130.51,8.96811685]
[1763407449878,50.0,130.53,130.52,9.66811685]
[1763407450884,50.0,130.53,130.52,8.96811685]
[1763407451260,50.0,130.53,130.52,9.66811685]
[1763407451670,50.0,130.55,130.52,9.66811685]
[1763407451973,50.0,130.55,130.54,8.96811685]
[1763407452396,60.18882769,130.55,130.54,8.96811685]
[1763407452796,50.0,130.55,130.54,8.96811685]
[1763407452974,50.0,130.55,130.54,9.63811685]
[1763407453696,50.0,130.55,130.54,8.96811685]
[1763407453882,60.18882769,130.55,130.54,8.96811685]
[1763407454204,50.0,130.51,130.5,18.12096]
[1763407454367,50.0,130.51,130.5,8.96811685]
[1763407454802,64.44882769,130.55,130.5,9.63811685]
[1763407454803,50.0,130.52,130.5,9.63811685]
[1763407455094,50.0,130.52,130.51,8.96811685]
[1763407455699,50.0,130.5,130.49,0.2]
[1763407456888,50.0,130.5,130.49,9.16811685]
[1763407459708,50.4,130.5,130.49,9.16811685]
[1763407459998,50.4,130.5,130.49,0.2]
[1763407460180,60.18882769,130.5,130.49,0.2]
[1763407460583,50.0,130.5,130.49,9.82811685]
[1763407460977,50.0,130.5,130.49,9.16811685]
[1763407462304,50.0,130.5,130.49,0.2]
[1763407462481,50.0,130.5,130.49,9.16811685]
[1763407463078,110.18882769,130.5,130.49,0.2]
[1763407464500,100.0,130.5,130.49,9.16811685]
[1763407465674,100.4,130.5,130.49,9.16811685]
[1763407466183,50.0,130.5,130.49,9.82811685]
[1763407466483,50.0,130.5,130.49,0.2]
[1763407466686,50.0,130.5,130.49,9.16811685]
[1763407466886,50.0,130.5,130.49,9.82811685]
[1763407467106,18.12096,130.57,130.49,9.82811685]
[1763407467107,50.0,130.54,130.49,9.82811685]
[1763407467274,50.0,130.54,130.53,8.96811685]
[1763407467678,50.0,130.54,130.53,9.62811685]
[1763407468405,50.0,130.54,130.53,8.96811685]
[1763407468896,50.0,130.5,130.49,18.98096]
[1763407469105,50.0,130.52,130.5,0.66]
[1763407469290,50.0,130.52,130.51,8.96811685]
[1763407470395,50.0,130.52,130.51,9.62811685]
[1763407470709,50.0,130.54,130.51,27.74907685]
[1763407470884,50.0,130.54,130.53,8.96811685]
[1763407471282,50.0,130.56,130.53,9.62811685]
[1763407471602,50.0,130.56,130.55,8.96811685]
[1763407471804,50.0,130.58,130.55,9.62811685]
[1763407471982,50.0,130.58,130.57,8.96811685]
[1763407472880,50.4,130.58,130.57,14.06966714]
[1763407473081,50.0,130.55,130.53,18.12096]
[1763407473277,50.0,130.55,130.54,14.06966714]
[1763407473482,50.0,130.55,130.53,18.12096]
[1763407473699,50.0,130.55,130.54,14.06966714]
[1763407473908,50.0,130.55,130.54,14.72966714]
[1763407474094,50.0,130.55,130.54,14.06966714]
[1763407474807,50.0,130.55,130.53,0.66]
[1763407475008,50.0,130.55,130.54,14.06966714]
[1763407475811,50.0,130.55,130.51,18.12096]
[1763407475812,50.0,130.53,130.51,18.12096]
[1763407475997,50.0,130.53,130.52,14.06966714]
[1763407480700,50.0,130.51,130.49,0.2]
[1763407480895,50.0,130.51,130.5,14.06966714]
[1763407483197,50.4,130.51,130.49,0.2]
[1763407483399,50.4,130.5,130.49,0.2]
[1763407484531,92.37945483,130.5,130.49,0.2]